bitfinex/quotes_SOLUSD_20250803
["timestamp","ask_amount","ask_price","bid_price","bid_amount"]
[1754228941295,26.0,161.34,161.33,0.7]
[1754228942371,26.71,161.34,161.31,9.60653938]
[1754228942577,0.71,161.33,161.31,9.60653938]
[1754228943085,26.71,161.33,161.31,9.60653938]
[1754228943274,26.71,161.32,161.31,0.2]
[1754228944107,30.82323974,161.32,161.31,0.2]
[1754228944285,40.22977912,161.32,161.31,0.2]
[1754228944482,57.01446309,161.32,161.31,0.2]
[1754228944681,57.01446309,161.32,161.3,0.2]
[1754228944893,57.62977912,161.31,161.3,0.2]
[1754228945081,74.41446309,161.31,161.3,0.2]
[1754228948588,82.08947546,161.31,161.3,0.2]
[1754228948817,72.68293608,161.31,161.3,0.2]
[1754228949017,82.08947546,161.31,161.3,0.2]
[1754228949929,38.68947546,161.31,161.3,0.2]
[1754228950116,82.06947546,161.31,161.3,0.2]
[1754228951026,38.68947546,161.31,161.3,0.2]
[1754228951228,82.05547296,161.31,161.3,0.2]
[1754228954596,91.46201196,161.31,161.3,0.2]
[1754228956021,91.46201196,161.31,161.22,1.02749746]
[1754228956022,42.78468397,161.27,161.22,1.02749746]
[1754228956204,26.0,161.23,161.22,1.02749746]
[1754228956409,69.4,161.23,161.22,1.02749746]
[1754228956931,26.0,161.24,161.22,11.11403684]
[1754228957227,43.44,161.23,161.22,1.02749746]
[1754228958003,43.44,161.23,161.22,1.70749746]
[1754228959513,43.44,161.23,161.22,1.02749746]
[1754228960202,43.44,161.23,161.22,1.70749746]
[1754228961417,43.44,161.23,161.22,1.02749746]
[1754228962006,44.12,161.23,161.22,1.02749746]
[1754228963437,43.44,161.23,161.22,1.02749746]
[1754228963620,43.5,161.23,161.22,11.11403684]
[1754228964043,26.0,161.23,161.22,11.11403684]
[1754228964264,69.52,161.23,161.22,11.11403684]
[1754228965137,69.52,161.23,161.22,1.70749746]
[1754228969769,26.0,161.23,161.22,11.11403684]
[1754228970545,26.0,161.23,161.22,1.70749746]
[1754228970965,26.0,161.23,161.22,11.11403684]
[1754228973288,26.0,161.23,161.22,1.02749746]
[1754228974194,26.0,161.23,161.22,11.11403684]
[1754228974493,26.0,161.23,161.22,1.70749746]
[1754228974682,26.0,161.23,161.22,1.02749746]
[1754228976086,26.0,161.23,161.22,11.11403684]
[1754228980789,26.0,161.23,161.22,1.70749746]
[1754228981794,26.0,161.23,161.22,1.02749746]
[1754228983180,26.68,161.23,161.22,1.02749746]
[1754228983388,0.68,161.23,161.22,1.02749746]
[1754228983695,14.18968484,161.23,161.22,1.02749746]
[1754228986276,30.97436881,161.23,161.22,1.02749746]
[1754228989982,56.97436881,161.23,161.22,1.02749746]
[1754228990180,66.33501733,161.23,161.22,1.02749746]
[1754228990486,40.33501733,161.23,161.22,1.02749746]
[1754228990904,40.33501733,161.23,161.2,0.06]
[1754228991082,26.19122335,161.21,161.2,0.06]
[1754228991276,35.43143026,161.21,161.2,0.06]
[1754228991495,30.98436881,161.21,161.2,0.06]
[1754228991805,45.37115372,161.21,161.2,0.06]
[1754228991978,83.67497585,161.21,161.2,0.06]
[1754228993282,47.13488448,161.21,161.15,5.23382485]
[1754228993607,26.0,161.16,161.15,5.23382485]
[1754228993770,30.10314546,161.16,161.15,5.23382485]
[1754228993975,26.0,161.17,161.15,5.93382485]
[1754228994171,26.0,161.17,161.16,0.7]
[1754228994390,26.0,161.16,161.15,5.23382485]
[1754228994600,43.46,161.17,161.15,4.93382485]
[1754228996684,43.46,161.17,161.15,14.34036423]
[1754228997310,43.46,161.17,161.15,4.93382485]
[1754228997488,43.46,161.17,161.15,14.34036423]
[1754228998379,43.46,161.17,161.15,14.40036423]
[1754228999786,43.46,161.17,161.15,4.99382485]
[1754228999987,43.46,161.17,161.15,14.40036423]
[1754229000225,69.46,161.17,161.16,10.10653938]
[1754229000383,26.0,161.17,161.16,10.10653938]
[1754229000586,26.0,161.16,161.15,14.40036423]
[1754229000987,70.15,161.16,161.15,4.99382485]
[1754229001187,84.10887472,161.16,161.15,4.99382485]
[1754229001507,78.79821235,161.16,161.15,4.99382485]
[1754229001980,88.20475173,161.16,161.15,4.99382485]
[1754229002180,78.79821235,161.16,161.15,4.99382485]
[1754229002809,78.10821235,161.16,161.15,4.99382485]
[1754229003296,78.1042926,161.16,161.15,4.99382485]
[1754229004508,74.00841559,161.16,161.15,4.99382485]
[1754229005616,74.00841559,161.16,161.15,5.69382485]
[1754229005827,74.00841559,161.16,161.15,4.99382485]
[1754229006123,30.54841559,161.16,161.15,15.10036423]
[1754229006421,74.00841559,161.16,161.15,15.10036423]
[1754229006788,74.00841559,161.16,161.15,14.40036423]
[1754229007786,74.00841559,161.16,161.15,15.10036423]
[1754229008005,30.54841559,161.16,161.15,15.10036423]
[1754229008426,30.54841559,161.16,161.15,14.40036423]
[1754229008585,30.54841559,161.16,161.15,15.10036423]
[1754229009013,30.54841559,161.16,161.15,14.40036423]
[1754229013044,30.54841559,161.16,161.15,15.10036423]
[1754229013411,30.54841559,161.16,161.15,14.40036423]
[1754229013821,78.55679657,161.18,161.15,15.08036423]
[1754229014114,78.55679657,161.18,161.17,9.40653938]
[1754229014315,83.10381196,161.18,161.17,9.40653938]
[1754229014923,83.82381196,161.18,161.16,9.40653938]
[1754229015125,4.54701539,161.17,161.15,4.99382485]
[1754229015417,4.54701539,161.17,161.16,9.40653938]
[1754229016240,5.26701539,161.17,161.16,9.40653938]
[1754229017153,5.26701539,161.17,161.15,4.99382485]
[1754229017451,48.70701539,161.16,161.15,4.99382485]
[1754229018126,74.70701539,161.16,161.15,4.99382485]
[1754229018825,74.64776101,161.16,161.15,4.99382485]
[1754229019944,48.64776101,161.16,161.15,4.99382485]
[1754229022549,52.74158746,161.16,161.15,4.99382485]
[1754229022849,69.52627143,161.16,161.15,4.99382485]
[1754229023049,48.66776101,161.16,161.15,4.99382485]
[1754229023256,52.76249452,161.16,161.15,4.99382485]
[1754229026760,52.04249452,161.16,161.15,4.99382485]
[1754229026960,52.04249452,161.16,161.15,14.40036423]
[1754229027478,52.04249452,161.16,161.15,4.99382485]
[1754229028868,78.04249452,161.16,161.15,14.40036423]
[1754229029445,78.04249452,161.16,161.15,4.99382485]
[1754229029776,78.76249452,161.16,161.15,4.99382485]
[1754229032890,52.76249452,161.16,161.15,4.99382485]
[1754229033585,52.78249452,161.16,161.15,4.99382485]
[1754229034758,52.86073857,161.16,161.15,4.99382485]
[1754229035980,62.26727795,161.16,161.15,4.99382485]
[1754229036187,67.39821634,161.16,161.15,4.99382485]
[1754229038465,84.18290031,161.16,161.15,4.99382485]
[1754229038666,110.18290031,161.16,161.15,4.99382485]
[1754229038977,105.05196192,161.16,161.15,0.32834345]
[1754229039186,74.48595686,161.16,161.15,0.32834345]
[1754229040068,79.61689525,161.16,161.15,0.32834345]
[1754229040484,85.47058454,161.16,161.15,0.32834345]
[1754229040674,80.33964615,161.16,161.07,9.40653938]
[1754229040874,52.19122335,161.12,161.06,0.68]
[1754229041098,47.57473351,161.11,161.07,9.40653938]
[1754229041271,26.0,161.09,161.0,9.40653938]
[1754229041470,26.0,161.1,161.08,10.08653938]
[1754229041770,43.48,161.09,161.08,10.08653938]
[1754229042084,43.48,161.09,161.08,9.40653938]
[1754229042289,44.2,161.09,161.07,9.40653938]
[1754229042680,43.48,161.09,161.07,9.40653938]
[1754229042879,48.54843244,161.09,161.07,9.40653938]
[1754229043303,26.0,161.06,161.03,0.68]
[1754229043478,69.48,161.06,161.05,9.40653938]
[1754229043678,26.0,161.06,161.05,9.40653938]
[1754229043895,26.0,161.06,161.05,10.07653938]
[1754229044500,26.0,161.06,161.05,9.40653938]
[1754229044671,26.0,161.06,161.05,10.07653938]
[1754229045287,26.0,161.04,160.93,17.69535587]
[1754229045506,5.06843244,161.09,160.9,159.95028284]
[1754229045507,26.0,160.99,160.96,0.67]
[1754229045801,26.0,160.99,160.98,9.40653938]
[1754229046101,26.0,160.99,160.98,10.07653938]
[1754229046293,26.0,160.98,160.95,0.67]
[1754229046495,26.0,160.98,160.92,35.46986997]
[1754229046496,26.0,160.98,160.97,9.40653938]
[1754229046880,26.0,160.98,160.97,10.07653938]
[1754229048398,26.0,161.0,160.97,10.07653938]
[1754229048703,29.71412773,161.09,160.93,17.40607215]
[1754229048704,5.06843244,161.09,160.99,18.81307876]
[1754229048878,4.54206175,161.08,161.07,9.40653938]
[1754229049493,9.29196831,161.08,161.06,9.40653938]
[1754229049815,26.0,161.06,161.05,9.40653938]
[1754229050010,30.54206175,161.06,161.05,9.40653938]
[1754229050506,43.68,161.07,161.05,9.40653938]
[1754229050713,0.66,161.1,161.06,9.40653938]
[1754229050887,26.0,161.06,161.0,26.19122335]
[1754229051603,26.0,161.06,161.01,0.67]
[1754229051802,43.68,161.09,161.01,0.67]
[1754229051803,43.68,161.09,161.02,16.78468397]
[1754229051978,43.68,161.09,161.08,9.40653938]
[1754229052181,30.54233552,161.09,161.08,9.40653938]
[1754229052375,30.54233552,161.09,161.08,10.07653938]
[1754229052603,26.0,161.09,161.08,10.07653938]
[1754229052880,43.68,161.13,161.08,10.07653938]
[1754229053080,4.54299792,161.12,161.11,9.40653938]
[1754229054395,34.63328427,161.12,161.11,9.40653938]
[1754229054704,34.63405167,161.12,161.11,9.40653938]
[1754229054905,26.0,161.1,161.09,0.67]
[1754229055131,26.0,161.1,161.09,9.40653938]
[1754229055297,26.0,161.14,161.09,10.07653938]
[1754229055498,4.54459538,161.13,161.12,9.40653938]
[1754229057305,26.0,161.11,161.1,0.67]
[1754229057501,26.0,161.11,161.1,9.40653938]
[1754229057911,26.0,161.11,161.1,10.07653938]
[1754229058227,26.0,161.15,161.1,10.07653938]
[1754229058426,43.69,161.16,161.14,9.40653938]
[1754229058625,43.69,161.16,161.15,9.40653938]
[1754229058849,43.69,161.16,161.12,0.67]
[1754229058850,26.0,161.13,161.12,0.67]
[1754229059014,26.0,161.13,161.12,10.07653938]
[1754229061528,43.69,161.16,161.12,10.07653938]
[1754229061529,0.03,161.16,161.12,10.07653938]
[1754229061733,0.03,161.16,161.15,9.40653938]
[1754229061926,26.03,161.16,161.15,9.40653938]
[1754229063236,26.03,161.16,161.13,0.67]
[1754229063430,26.03,161.16,161.15,9.40653938]
[1754229064435,26.69,161.16,161.15,9.40653938]
[1754229064613,26.03,161.16,161.15,9.40653938]
[1754229065754,0.03,161.16,161.15,9.40653938]
[1754229066050,26.03,161.16,161.15,9.40653938]
[1754229067221,0.03,161.16,161.15,9.40653938]
[1754229067426,26.03,161.16,161.15,10.07653938]
[1754229068118,26.03,161.16,161.15,9.40653938]
[1754229069671,26.03,161.16,161.14,0.67]
[1754229069853,26.03,161.16,161.15,9.40653938]
[1754229075375,0.03,161.16,161.15,9.40653938]
[1754229075674,0.03,161.16,161.15,10.10653938]
[1754229075868,0.03,161.16,161.15,26.89122335]
[1754229076073,0.03,161.16,161.15,85.99122335]
[1754229076243,0.03,161.17,161.15,85.99122335]
[1754229076443,0.03,161.17,161.16,10.10653938]
[1754229076649,0.03,161.17,161.16,69.20653938]
[1754229079156,0.03,161.18,161.17,9.40653938]
[1754229079567,0.03,161.18,161.17,70.47122335]
[1754229079883,0.03,161.19,161.18,9.40653938]
[1754229080372,0.03,161.19,161.18,10.10653938]
[1754229081565,0.03,161.19,161.18,26.89122335]
[1754229082084,0.66,161.26,161.19,16.78468397]
[1754229082284,0.66,161.26,161.25,9.40653938]
[1754229083363,0.66,161.27,161.25,9.40653938]
[1754229083571,0.66,161.27,161.26,9.40653938]
[1754229087836,0.69,161.27,161.26,9.40653938]
[1754229090585,0.69,161.27,161.23,0.7]
[1754229090586,0.69,161.27,161.22,16.78468397]
[1754229090910,0.69,161.27,161.24,9.40653938]
[1754229091602,0.69,161.27,161.2,26.0]
[1754229091804,0.69,161.27,161.23,9.40653938]
[1754229093889,44.23,161.27,161.22,9.40653938]
[1754229094096,43.57,161.27,161.22,9.40653938]
[1754229094304,0.66,161.26,161.22,9.40653938]
[1754229095992,0.66,161.26,161.23,9.40653938]
[1754229096413,0.66,161.25,161.23,9.40653938]
[1754229096997,44.23,161.27,161.24,9.40653938]
[1754229097198,0.66,161.26,161.23,9.40653938]
[1754229097630,0.66,161.25,161.23,9.40653938]
[1754229098506,44.23,161.27,161.24,9.40653938]
[1754229098707,0.66,161.26,161.24,9.40653938]
[1754229099546,0.66,161.26,161.22,59.8]
[1754229099846,0.66,161.25,161.23,9.40653938]
[1754229100621,43.57,161.27,161.24,9.40653938]
[1754229100852,0.66,161.26,161.24,9.40653938]
[1754229101443,0.66,161.25,161.23,9.40653938]
[1754229105561,26.0,161.24,161.23,9.40653938]
[1754229107167,26.0,161.24,161.23,10.10653938]
[1754229107364,0.03,161.27,161.23,10.10653938]
[1754229107573,0.03,161.27,161.26,9.40653938]
[1754229108456,0.7,161.27,161.25,9.40653938]
[1754229108837,0.67,161.26,161.22,59.1]
[1754229109042,0.03,161.27,161.23,9.40653938]
[1754229109043,0.67,161.25,161.23,9.40653938]
[1754229110692,0.03,161.27,161.23,9.40653938]
[1754229110891,0.67,161.26,161.23,9.40653938]
[1754229112779,0.67,161.26,161.24,9.40653938]
[1754229113569,0.03,161.27,161.24,9.40653938]
[1754229113870,0.7,161.27,161.24,9.40653938]
[1754229114098,0.03,161.27,161.23,0.7]
[1754229114306,0.67,161.26,161.24,9.40653938]
[1754229115101,0.67,161.26,161.22,0.7]
[1754229115102,26.0,161.24,161.22,9.40653938]
[1754229115412,0.67,161.23,161.22,9.40653938]
[1754229115809,26.0,161.24,161.22,9.40653938]
[1754229116482,26.67,161.25,161.22,9.40653938]
[1754229116680,26.67,161.25,161.23,9.40653938]
[1754229116887,26.0,161.25,161.23,9.40653938]
[1754229118209,26.0,161.25,161.24,9.40653938]
[1754229118392,26.0,161.25,161.24,10.10653938]
[1754229119699,0.03,161.27,161.24,69.20653938]
[1754229119895,0.03,161.27,161.26,9.40653938]
[1754229120078,0.03,161.27,161.26,26.19122335]
[1754229120282,0.03,161.27,161.26,27.51133993]
[1754229120476,0.03,161.27,161.26,10.10653938]
[1754229120724,0.03,161.27,161.26,9.40653938]
[1754229120928,0.7,161.27,161.25,43.46]
[1754229121084,26.0,161.26,161.22,19.354977]
[1754229121406,26.67,161.26,161.25,9.40653938]
[1754229121729,26.67,161.26,161.24,9.40653938]
[1754229122000,26.67,161.26,161.22,19.354977]
[1754229122211,26.03,161.27,161.25,9.40653938]
[1754229122513,26.7,161.27,161.25,9.40653938]
[1754229122678,26.7,161.27,161.23,0.7]
[1754229122876,26.7,161.27,161.25,9.40653938]
[1754229125007,0.67,161.26,161.25,9.40653938]
[1754229125583,4.78546519,161.26,161.25,9.40653938]
[1754229126408,4.11546519,161.26,161.25,9.40653938]
[1754229126593,26.0,161.25,161.22,59.1]
[1754229126787,4.78619208,161.24,161.22,59.1]
[1754229127197,4.78619208,161.24,161.2,62.816136]
[1754229127393,0.67,161.23,161.21,9.40653938]
[1754229127701,0.67,161.23,161.2,52.86653938]
[1754229127903,0.67,161.22,161.2,9.40653938]
[1754229128088,30.11619208,161.24,161.21,10.10653938]
[1754229128294,43.48,161.26,161.22,10.10653938]
[1754229128295,26.0,161.23,161.22,10.10653938]
[1754229128488,0.03,161.27,161.23,16.78468397]
[1754229128812,0.03,161.27,161.26,9.40653938]
[1754229129254,0.03,161.27,161.26,10.10653938]
[1754229130113,0.03,161.27,161.26,14.25360038]
[1754229132711,0.03,161.27,161.24,43.48]
[1754229132906,0.03,161.27,161.26,9.40653938]
[1754229133528,0.03,161.27,161.25,4.147062]
[1754229133739,0.03,161.27,161.26,9.40653938]
[1754229136607,0.7,161.27,161.26,9.40653938]
[1754229136814,0.03,161.27,161.26,10.08653938]
[1754229138399,0.03,161.27,161.26,68.50653938]
[1754229140616,0.03,161.27,161.26,73.32360138]
[1754229140821,0.03,161.27,161.26,116.82360138]
[1754229142939,0.03,161.27,161.26,117.50360138]
[1754229145620,0.03,161.29,161.27,16.78468397]
[1754229145816,0.03,161.29,161.28,70.29126303]
[1754229146220,0.03,161.29,161.28,70.97126303]
[1754229148449,0.03,161.29,161.28,73.45720203]
[1754229148640,0.03,161.3,161.29,16.78468397]
[1754229148823,0.03,161.34,161.29,46.27776273]
[1754229149034,0.03,161.34,161.31,26.19122335]
[1754229149609,0.03,161.34,161.31,26.87122335]
[1754229150237,0.03,161.34,161.31,17.46468397]
[1754229150418,0.03,161.34,161.31,85.97122335]
[1754229150621,0.03,161.34,161.33,26.19122335]
[1754229150809,0.03,161.36,161.34,16.78468397]
[1754229151012,0.03,161.36,161.35,70.31099403]
[1754229151238,0.03,161.36,161.35,70.99099403]
[1754229151427,0.03,161.4,161.36,16.78468397]
[1754229151613,0.03,161.4,161.39,9.40653938]
[1754229151821,0.03,161.4,161.39,69.69122335]
[1754229152127,0.03,161.4,161.39,80.3973798]
[1754229152310,0.03,161.44,161.39,80.3973798]
[1754229152514,0.03,161.44,161.43,9.40653938]
[1754229152747,0.03,161.44,161.43,52.92653938]
[1754229153839,0.03,161.44,161.43,70.39122335]
[1754229154344,0.03,161.44,161.43,69.71122335]
[1754229154565,0.03,161.44,161.43,9.40653938]
[1754229154724,0.7,161.44,161.43,52.92653938]
[1754229154921,0.7,161.44,161.43,52.94653938]
[1754229155433,0.7,161.44,161.43,9.40653938]
[1754229155640,0.7,161.44,161.43,52.94653938]
[1754229155845,0.7,161.44,161.42,52.96653938]
[1754229156744,26.7,161.44,161.42,55.45093438]
[1754229156948,26.03,161.44,161.42,55.45093438]
[1754229157148,26.03,161.44,161.43,9.40653938]
[1754229157353,0.03,161.44,161.43,9.40653938]
[1754229158157,0.7,161.44,161.43,9.40653938]
[1754229158325,0.7,161.44,161.42,43.56]
[1754229158326,26.7,161.44,161.41,52.94653938]
[1754229158529,0.67,161.43,161.41,52.94653938]
[1754229159230,0.67,161.43,161.41,112.04653938]
[1754229159754,0.67,161.42,161.41,102.64]
[1754229160048,0.67,161.42,161.41,112.04653938]
[1754229166156,0.67,161.42,161.41,102.64]
[1754229167866,26.67,161.42,161.41,43.54]
[1754229168452,26.0,161.41,161.38,18.81307938]
[1754229168635,0.72,161.4,161.39,43.48]
[1754229168952,0.72,161.4,161.38,43.48]
[1754229169157,35.40653938,161.43,161.38,43.48]
[1754229169328,26.72,161.39,161.37,18.636434]
[1754229169535,0.72,161.38,161.37,18.636434]
[1754229169764,26.0,161.37,161.35,43.54]
[1754229169928,26.0,161.37,161.35,52.94653938]
[1754229170427,0.72,161.36,161.35,43.54]
[1754229171440,0.72,161.36,161.34,52.94653938]
[1754229173069,0.72,161.4,161.35,10.08653938]
[1754229173240,26.0,161.41,161.37,9.40653938]
[1754229173436,0.72,161.39,161.37,9.40653938]
[1754229173957,0.72,161.41,161.38,9.40653938]
[1754229174161,0.72,161.41,161.38,52.94653938]
[1754229174875,26.72,161.41,161.38,52.94653938]
[1754229175077,26.0,161.42,161.4,9.40653938]
[1754229175241,26.72,161.43,161.4,9.40653938]
[1754229175748,26.0,161.42,161.4,9.40653938]
[1754229176070,26.72,161.42,161.39,9.40653938]
[1754229176451,0.72,161.41,161.38,52.94653938]
[1754229177777,0.72,161.41,161.38,53.00653938]
[1754229178463,0.03,161.42,161.39,9.40653938]
[1754229178703,0.75,161.42,161.39,9.40653938]
[1754229179001,26.75,161.42,161.39,9.40653938]
[1754229180674,0.72,161.41,161.39,9.40653938]
[1754229181401,9.40653938,161.4,161.39,59.1]
[1754229181602,10.12653938,161.4,161.39,59.1]
[1754229182174,10.12653938,161.4,161.38,0.06]
[1754229182376,36.12653938,161.39,161.38,0.06]
[1754229184202,40.21869396,161.39,161.38,0.06]
[1754229184696,14.21869396,161.39,161.38,0.06]
[1754229187001,30.81215458,161.39,161.38,0.06]
[1754229187374,40.22608401,161.39,161.38,0.06]
[1754229187578,40.22608401,161.39,161.36,0.06]
[1754229187772,35.40653938,161.37,161.36,0.06]
[1754229187978,39.50608401,161.37,161.36,0.06]
[1754229188187,40.22608401,161.37,161.36,0.06]
[1754229192876,83.76608401,161.37,161.36,0.06]
[1754229194500,73.63954463,161.37,161.36,0.06]
[1754229194889,74.30954463,161.37,161.36,0.06]
[1754229195803,83.71608401,161.37,161.36,0.06]
[1754229198973,83.71984269,161.37,161.36,0.06]
[1754229200009,74.31330331,161.37,161.36,0.06]
[1754229200222,83.71984269,161.37,161.36,0.06]
[1754229206989,83.72594465,161.37,161.36,0.06]
[1754229211690,113.38346869,161.37,161.36,0.06]
[1754229212706,16.78468397,161.36,161.34,0.06]
[1754229212927,56.99594465,161.35,161.34,0.06]
[1754229213298,57.66594465,161.35,161.34,0.06]
[1754229213903,62.81362372,161.35,161.34,0.06]
[1754229215012,57.66594465,161.35,161.34,0.06]
[1754229217246,87.33439117,161.35,161.34,0.06]
[1754229217446,82.1867121,161.35,161.34,0.06]
[1754229218223,82.1867121,161.35,161.23,16.78468397]
[1754229218430,26.0,161.3,161.23,0.68]
[1754229218637,26.0,161.24,161.23,0.68]
[1754229218852,43.92,161.25,161.23,0.68]
[1754229219228,26.0,161.22,161.21,0.2]
[1754229219852,26.0,161.22,161.21,0.88]
[1754229222852,26.0,161.23,161.21,10.28653938]
[1754229223046,26.0,161.23,161.22,0.68]
[1754229224364,26.0,161.23,161.22,59.78]
[1754229226946,69.9,161.26,161.22,69.18653938]
[1754229227154,26.0,161.24,161.23,0.66]
[1754229227432,26.0,161.24,161.22,68.50653938]
[1754229227635,26.0,161.24,161.23,9.40653938]
[1754229227942,26.0,161.24,161.23,10.06653938]
[1754229228143,26.0,161.24,161.22,59.1]
[1754229230665,26.0,161.24,161.22,69.16653938]
[1754229232252,26.0,161.25,161.23,10.06653938]
[1754229232559,26.0,161.25,161.24,10.06653938]
[1754229232936,26.0,161.26,161.24,0.66]
[1754229233143,26.0,161.26,161.25,9.40653938]
[1754229233364,26.0,161.26,161.24,59.76]
[1754229233365,26.0,161.26,161.24,69.16653938]
[1754229233544,26.0,161.25,161.24,59.1]
[1754229234268,26.0,161.26,161.24,59.1]
[1754229234838,26.0,161.26,161.24,69.16653938]
[1754229236753,26.0,161.26,161.25,0.66]
[1754229236949,26.0,161.26,161.24,68.50653938]
[1754229241549,26.0,161.26,161.24,69.16653938]
[1754229242448,0.68,161.3,161.25,10.06653938]
[1754229242653,0.68,161.3,161.26,10.06653938]
[1754229242873,26.0,161.28,161.26,10.06653938]
[1754229243048,26.0,161.28,161.27,9.40653938]
[1754229243250,26.0,161.27,161.26,9.40653938]
[1754229244572,26.68,161.27,161.25,68.50653938]
[1754229244745,26.68,161.27,161.25,59.1]
[1754229244947,0.68,161.26,161.25,59.1]
[1754229245450,26.68,161.27,161.25,68.50653938]
[1754229250581,8.81531291,161.34,161.27,16.78468397]
[1754229250582,13.95953176,161.34,161.27,16.78468397]
[1754229250750,0.03,161.34,161.33,9.40653938]
[1754229250955,0.03,161.34,161.33,10.06653938]
[1754229251878,0.03,161.34,161.33,26.85122335]
[1754229252977,0.03,161.34,161.33,10.06653938]
[1754229256776,0.03,161.34,161.33,69.16653938]
[1754229257195,0.03,161.37,161.34,16.78468397]
[1754229257498,0.03,161.37,161.36,26.19122335]
[1754229257893,0.03,161.37,161.36,26.89122335]
[1754229261680,0.03,161.37,161.36,29.37577335]
[1754229261877,0.03,161.38,161.37,9.40653938]
[1754229262077,0.03,161.38,161.37,53.90653938]
[1754229262787,0.03,161.38,161.37,54.52623325]
[1754229264595,0.03,161.38,161.37,53.90653938]
[1754229264915,0.03,161.38,161.37,9.40653938]
[1754229265121,0.03,161.38,161.37,53.18653938]
[1754229265711,0.03,161.38,161.37,129.77122335]
[1754229267879,0.03,161.38,161.37,129.07122335]
[1754229268081,0.03,161.38,161.37,131.55577235]
[1754229268913,0.03,161.38,161.37,132.25577235]
[1754229270603,0.03,161.38,161.37,131.55577235]
[1754229271723,0.03,161.38,161.37,132.25577235]
[1754229273200,0.03,161.38,161.37,131.55577235]
[1754229275235,0.71,161.38,161.37,114.77108838]
[1754229275443,0.71,161.38,161.37,70.99108838]
[1754229275618,0.71,161.38,161.37,112.22653938]
[1754229276012,0.71,161.38,161.37,43.72]
[1754229276221,0.71,161.38,161.36,43.74]
[1754229276724,0.71,161.38,161.36,9.40653938]
[1754229276909,0.71,161.38,161.37,9.40653938]
[1754229277604,0.71,161.38,161.37,53.16653938]
[1754229278120,0.03,161.38,161.37,53.16653938]
[1754229280418,0.03,161.38,161.37,112.26653938]
[1754229287006,0.71,161.38,161.37,112.26653938]
[1754229288236,0.03,161.38,161.37,112.26653938]
[1754229290416,0.03,161.38,161.37,112.32653938]
[1754229292350,0.03,161.38,161.37,113.01653938]
[1754229292854,0.03,161.38,161.37,129.80122335]
[1754229295631,0.03,161.38,161.37,129.11122335]
[1754229295945,0.03,161.38,161.37,129.80122335]
[1754229298249,26.0,161.43,161.37,129.80122335]
[1754229298470,26.0,161.43,161.4,9.40653938]
[1754229298623,26.0,161.43,161.41,43.62]
[1754229298829,26.0,161.43,161.41,112.12653938]
[1754229299136,26.0,161.43,161.41,102.72]
[1754229299432,26.0,161.42,161.41,102.72]
[1754229300263,0.68,161.42,161.41,59.1]
[1754229300568,10.08653938,161.42,161.41,59.1]
[1754229301052,26.68,161.42,161.41,59.1]
[1754229302632,26.68,161.42,161.41,68.50653938]
[1754229303660,26.68,161.42,161.41,59.1]
[1754229304136,26.68,161.42,161.39,43.62]
[1754229304337,0.68,161.41,161.38,43.62]
[1754229305338,0.68,161.41,161.37,102.78]
[1754229305762,0.68,161.41,161.37,43.68]
[1754229306469,26.0,161.4,161.37,43.68]
[1754229306848,0.68,161.39,161.37,43.68]
[1754229309253,26.0,161.41,161.38,9.40653938]
[1754229309513,5.14421885,161.45,161.4,18.81307876]
[1754229309758,0.03,161.46,161.44,9.40653938]
[1754229309962,0.03,161.46,161.45,9.40653938]
[1754229311772,0.03,161.46,161.45,10.09653938]
[1754229312067,0.03,161.46,161.45,26.88122335]